fUST/lending_fUST_20241023
["ID","MTS","AMOUNT","RATE_DAILY","PERIOD"]
[340679663,1729671647366,-400.0,0.000174,31]
[340679664,1729671705820,-300.0,0.000174,31]
[340679665,1729671821313,-400.0,0.00013973,2]
[340679666,1729671821337,-4804.0561336,0.00013995,2]
[340679667,1729671821360,-300.0,0.00014972,2]
[340679668,1729671821381,-500.0,0.00014973,2]
[340679669,1729671821403,-500.0,0.00014973,2]
[340679670,1729671821426,-500.0,0.00014973,2]
[340679671,1729671821449,-59983.8387388,0.0001498,2]
[340679672,1729671821472,-157985.163939,0.0001498,2]
[340679673,1729671821500,-405.43998004,0.00014989,2]
[340679674,1729671821522,-99973.0645646,0.0001499,2]
[340679675,1729671821545,-119360.43664396,0.0001499,2]
[340679676,1729671861564,-3384.42038116,0.00014891,2]
[340679677,1729671861587,-500.0,0.00014973,2]
[340679678,1729671861609,-337.86665003,0.00014989,2]
[340679679,1729671861631,-300.0,0.00014989,2]
[340679680,1729671861654,-183.6555615,0.00014989,2]
[340679681,1729671861677,-38624.72729504,0.0001499,2]
[340679682,1729671861698,-154.286658,0.00014991,2]
[340679683,1729671861720,-7079.6454023,0.00015,2]
[340679684,1729671861741,-97887.39805197,0.00015,2]
[340679690,1729672112626,-824.30143065,0.00012,7]
[340679691,1729672120740,337.10129089,0.0001,7]
[340679711,1729672232162,-300.0,0.00012999,2]
[340679712,1729672232171,-300.0,0.00012999,2]
[340679713,1729672232181,-93.67584617,0.00013,2]
[340679714,1729672232215,-3870.59615194,0.00013,2]
[340679749,1729672238969,-0.02397332,0.00013,2]
[340679756,1729672240277,-638.36546201,0.00013,2]
[340679772,1729672243220,-804.09197599,0.00013,2]
[340679821,1729672246301,-3149.87798774,0.00013,2]
[340679822,1729672303444,172.29,0.00010959,2]
[340679823,1729672314136,861.5,0.00010959,2]
[340679825,1729672797864,-250.0,0.00011469,2]
[340679826,1729673175275,-11252.69856935,0.000115,2]
[340679928,1729673438562,-300.0,0.00011499,2]
[340679929,1729673438573,-300.0,0.00011499,2]
[340679930,1729673438583,-13647.30143065,0.000115,2]
[340679931,1729673438596,-250.0,0.00011745,2]
[340679932,1729673438606,-2370.7849648,0.00011776,2]
[340679933,1729673438616,-805.9029372,0.00011889,2]
[340679934,1729673438627,-164.633002,0.00012002,2]
[340679935,1729673438637,-164.633002,0.00012041,2]
[340679936,1729673438646,-164.633002,0.0001208,2]
[340679937,1729673438656,-164.633002,0.00012119,2]
[340679938,1729673438666,-164.633002,0.00012158,2]
[340679939,1729673438675,-164.633002,0.00012197,2]
[340679940,1729673438684,-164.633002,0.00012236,2]
[340679941,1729673438694,-164.633002,0.00012275,2]
[340679942,1729673438703,-164.633002,0.00012315,2]
[340679943,1729673438713,-164.633002,0.00012354,2]
[340679944,1729673438726,-164.633002,0.00012393,2]
[340679945,1729673438735,-170.944201,0.00012409,2]
[340679946,1729673438744,-164.633002,0.00012432,2]
[340679947,1729673438753,-164.633002,0.00012471,2]
[340679948,1729673438765,-170.944201,0.00012471,2]
[340679949,1729673438775,-164.633002,0.0001251,2]
[340679950,1729673438785,-164.633002,0.00012549,2]
[340679951,1729673438795,-164.633002,0.00012588,2]
[340679952,1729673438806,-164.633002,0.00012627,2]
[340679953,1729673438815,-420.0,0.0001263,2]
[340679954,1729673438826,-420.0,0.00012649,2]
[340679955,1729673438837,-193.98953725,0.00012899,2]
[340679956,1729673438847,-160.16914014,0.00012993,2]
[340679957,1729673438859,-14289.53910684,0.00013,2]
[340679958,1729673438868,-258.4421225,0.00013,2]
[340679959,1729673438878,-4129.50418388,0.00013093,2]
[340679960,1729673438889,-500.0,0.00013698,2]
[340679961,1729673438900,-500.0,0.00013698,2]
[340679962,1729673438910,-500.0,0.00013698,2]
[340679963,1729673438919,-500.0,0.00013698,2]
[340679964,1729673438929,-500.0,0.00013698,2]
[340679965,1729673438939,-500.0,0.00013698,2]
[340679966,1729673438948,-485.33279151,0.00013698,2]
[340679967,1729673438958,-288.134536,0.00013699,2]
[340679968,1729673438968,-250.0,0.00013699,2]
[340679969,1729673438977,-587.0,0.00013872,2]
[340679970,1729673438987,-300.0,0.00013914,2]
[340679971,1729673438998,-380.0,0.00013973,2]
[340679972,1729673439008,-200.0,0.00013973,2]
[340679973,1729673439019,-234.14575256,0.00014,3]
[340679974,1729673439029,-500.0,0.0001425,2]
[340679975,1729673439038,-158.266193,0.00014413,2]
[340679976,1729673439048,-158.266193,0.00014413,2]
[340679977,1729673439058,-153.0,0.00014658,2]
[340679978,1729673439067,-522.64366359,0.00014671,2]
[340679979,1729673439089,-4.35633641,0.00014671,2]
[340679980,1729673439098,-1152.0,0.00014671,2]
[340679981,1729673439109,-2398.0,0.00014671,2]
[340679982,1729673439120,-250.0,0.00014671,2]
[340679983,1729673439130,-8891.17465365,0.00014742,2]
[340679984,1729673439139,-779.074871,0.0001475,2]
[340679985,1729673439149,-1114.65251888,0.00014873,2]
[340679986,1729673439158,-1114.65251887,0.0001488,2]
[340679987,1729673439168,-1114.65251887,0.00014887,2]
[340679988,1729673439177,-11726.61289675,0.0001489,2]
[340679989,1729673439186,-1114.65251887,0.00014893,2]
[340679990,1729673439197,-6663.50446414,0.000149,2]
[340679991,1729673439206,-1114.65251887,0.000149,2]
[340679992,1729673439216,-302.0,0.000149,2]
[340679993,1729673439226,-164.835,0.00014907,2]
[340679994,1729673439237,-153.0,0.0001492,2]
[340679995,1729673439246,-406.0,0.0001497,2]
[340679996,1729673439256,-525.00593041,0.00014973,2]
[340679997,1729673439266,-500.7306926,0.00014973,2]
[340679998,1729673439276,-504.83177274,0.00014973,2]
[340679999,1729673439285,-500.0,0.00014973,2]
[340680000,1729673439295,-500.0,0.00014973,2]
[340680001,1729673439304,-500.0,0.00014973,2]
[340680002,1729673439315,-1000.0,0.00014979,2]
[340680003,1729673439324,-612.99382853,0.00014979,2]
[340680004,1729673439334,-298.07180047,0.00014979,2]
[340680005,1729673439344,-132.92884145,0.00014979,2]
[340680006,1729673439373,-88.79027836,0.00014979,2]
[340680007,1729673439383,-500.0,0.0001498,2]
[340680008,1729673439392,-2629.51413738,0.0001498,2]
[340680015,1729673443289,-3549.99999983,0.0001498,2]
[340680016,1729673443301,-415.6964777,0.0001498,2]
[340680280,1729673446253,-25336.76784621,0.0001498,2]
[340680296,1729673456789,199.28,0.00010959,2]
[340680297,1729673467339,323.06,0.00010959,2]
[340680298,1729673477901,269.22,0.00010959,2]
[340680299,1729673488372,224.35,0.00010959,2]
[340680300,1729673498942,186.96,0.00010959,2]
[340680301,1729673509721,155.8,0.00010959,2]
[340680302,1729673520256,779.01,0.00010959,2]
[340680304,1729674003759,500.0,0.0001,2]
[340680384,1729674635461,-481.4960218,0.00013374,2]
[340680385,1729674635476,-313.2237399,0.00013425,2]
[340680386,1729674635486,-300.0,0.00013492,2]
[340680387,1729674635496,-300.0,0.00013492,2]
[340680388,1729674635505,-60.92370025,0.00013493,2]
[340680389,1729674635519,-663.5,0.00013493,2]
[340680390,1729674635531,-1400.01032945,0.00013493,2]
[340680415,1729674638895,-7533.7234308,0.00013493,2]
[340680416,1729674638905,-3000.0,0.00013526,2]
[340680417,1729674638914,-1987.0566275,0.00013552,2]
[340680418,1729674638923,-250.0,0.00013699,2]
[340680419,1729674638933,-390.0,0.00013973,2]
[340680420,1729674638943,-943.64884563,0.00014313,2]
[340680421,1729674638953,-2396.0,0.00014369,2]
[340680422,1729674638963,-166.686713,0.00014413,2]
[340680423,1729674638974,-206.111736,0.00014413,2]
[340680424,1729674638984,-150.908,0.00014671,2]
[340680425,1729674638994,-420.0,0.00014788,2]
[340680426,1729674639003,-164.835,0.000149,2]
[340680427,1729674639013,-5000.0,0.000149,3]
[340680428,1729674639022,-153.0,0.00014911,2]
[340680429,1729674639032,-153.0,0.00014911,2]
[340680430,1729674639041,-154.9046633,0.00014911,2]
[340680431,1729674639051,-153.0,0.00014911,2]
[340680432,1729674639060,-153.0,0.0001492,2]
[340680433,1729674639070,-232.10772612,0.00014979,2]
[340680434,1729674639079,-5000.000001,0.00014979,2]
[340680435,1729674639089,-500.0,0.0001498,2]
[340680436,1729674639100,-500.0,0.0001498,2]
[340680437,1729674639112,-429.09567997,0.00014989,2]
[340680438,1729674639121,-208.65026033,0.00014989,2]
[340680439,1729674639131,-155.20338387,0.00014989,2]
[340680440,1729674639141,-387.25919906,0.00014989,2]
[340680441,1729674639151,-6371.68086207,0.0001499,2]
[340680442,1729674639160,-29035.62553885,0.0001499,2]
[340680443,1729674639175,-35089.66139815,0.0001499,2]
[340680444,1729674639185,-83298.39513539,0.0001499,2]
[340680445,1729674639196,-656.64,0.0001499,2]
[340680446,1729674639208,-898.32082613,0.0001499,2]
[340680472,1729674641522,-496.36527315,0.0001499,2]
[340680473,1729674641534,-3324.0,0.0001499,2]
[340680474,1729674641545,-3704.39276817,0.0001499,2]
[340680475,1729674641559,-892.190604,0.0001499,2]
[340680476,1729674641580,-63328.86942416,0.0001499,2]
[340680477,1729674641590,-635.86560973,0.00014999,2]
[340680478,1729674641599,-2440.26496605,0.00015,2]
[340680479,1729674641621,-71804.26738034,0.00015,2]
[340680480,1729674641631,-521.11,0.00015,3]
[340680481,1729674641641,-500.0,0.00015,3]
[340680482,1729674641651,-500.0,0.00015,3]
[340680483,1729674641660,-1000.0,0.00015,10]
[340680484,1729674641670,-420.865615,0.00015,2]
[340680485,1729674641679,-480.0,0.00015,4]
[340680486,1729674641689,-161.6,0.00015,2]
[340680487,1729674641698,-5000.0,0.00015,2]
[340680488,1729674641708,-33143.87516185,0.00015,10]
[340680489,1729674641717,-167.95639723,0.00015,5]
[340680490,1729674641726,-3000.0,0.00015,2]
[340680491,1729674641735,-151.0,0.00015,2]
[340680492,1729674641745,-151.0,0.00015,2]
[340680493,1729674641754,-175.388486,0.00015,2]
[340680494,1729674641763,-254.434384,0.00015,2]
[340680495,1729674641773,-151.0,0.00015,2]
[340680496,1729674641782,-151.0,0.00015,2]
[340680497,1729674641792,-151.0,0.00015,2]
[340680498,1729674641801,-151.0,0.00015,2]
[340680499,1729674641810,-151.0,0.00015,2]
[340680500,1729674641820,-151.0,0.00015,2]
[340680501,1729674641830,-151.0,0.00015,2]
[340680502,1729674641839,-151.0,0.00015,2]
[340680503,1729674641849,-151.0,0.00015,2]
[340680504,1729674641858,-151.0,0.00015,2]
[340680505,1729674641867,-151.0,0.00015,2]
[340680506,1729674641877,-151.0,0.00015,2]
[340680507,1729674641886,-151.0,0.00015,2]
[340680508,1729674641895,-151.0,0.00015,2]
[340680509,1729674641905,-151.0,0.00015,2]
[340680510,1729674641915,-151.0,0.00015,2]
[340680511,1729674641924,-151.0,0.00015,2]
[340680512,1729674641933,-151.0,0.00015,2]
[340680513,1729674641943,-151.0,0.00015,2]
[340680514,1729674641953,-173.272126,0.00015,2]
[340680515,1729674641962,-173.272126,0.00015,2]
[340680516,1729674641973,-173.272126,0.00015,2]
[340680517,1729674641982,-173.272126,0.00015,2]
[340680518,1729674641991,-151.0,0.00015,2]
[340680519,1729674642001,-151.0,0.00015,2]
[340680520,1729674642011,-151.0,0.00015,2]
[340680521,1729674642020,-151.0,0.00015,2]
[340680522,1729674642030,-151.420846,0.00015,2]
[340680523,1729674642040,-151.0,0.00015,2]
[340680524,1729674642049,-151.73652,0.00015,2]
[340680525,1729674642058,-151.0,0.00015,2]
[340680526,1729674642067,-151.0,0.00015,2]
[340680527,1729674642077,-151.0,0.00015,2]
[340680528,1729674642086,-151.0,0.00015,2]
[340680529,1729674642095,-151.0,0.00015,2]
[340680530,1729674642108,-194.405621,0.00015,2]
[340680531,1729674642119,-167.354974,0.00015,2]
[340680532,1729674642128,-167.354974,0.00015,2]
[340680533,1729674642137,-167.354974,0.00015,2]
[340680534,1729674642147,-167.354974,0.00015,2]
[340680535,1729674642157,-151.0,0.00015,2]
[340680536,1729674642166,-151.0,0.00015,2]
[340680537,1729674642175,-151.0,0.00015,2]
[340680538,1729674642185,-151.0,0.00015,2]
[340680539,1729674642195,-151.0,0.00015,2]
[340680540,1729674642204,-151.0,0.00015,2]
[340680541,1729674642213,-373.376443,0.00015,2]
[340680542,1729674642225,-373.376443,0.00015,2]
[340680543,1729674642239,-373.376443,0.00015,2]
[340680544,1729674642248,-373.376443,0.00015,2]
[340680545,1729674642258,-151.0,0.00015,2]
[340680546,1729674642268,-151.0,0.00015,2]
[340680547,1729674642278,-151.0,0.00015,2]
[340680548,1729674642287,-151.0,0.00015,2]
[340680549,1729674642297,-151.0,0.00015,2]
[340680550,1729674642307,-219.459544,0.00015,2]
[340680551,1729674642317,-219.459544,0.00015,2]
[340680552,1729674642326,-219.459544,0.00015,2]
[340680553,1729674642336,-219.459544,0.00015,2]
[340680554,1729674642346,-151.0,0.00015,2]
[340680555,1729674642356,-541.320074,0.00015,2]
[340680556,1729674642366,-541.320074,0.00015,2]
[340680557,1729674642376,-151.0,0.00015,2]
[340680558,1729674642386,-151.0,0.00015,2]
[340680559,1729674642395,-169.10232,0.00015,2]
[340680560,1729674642405,-192.173597,0.00015,2]
[340680561,1729674642415,-192.173597,0.00015,2]
[340680562,1729674642425,-151.0,0.00015,2]
[340680563,1729674642435,-208.78581,0.00015,2]
[340680564,1729674642444,-1833.0,0.00015,2]
[340680565,1729674642453,-208.78581,0.00015,2]
[340680566,1729674642463,-314.566744,0.00015,2]
[340680567,1729674642473,-314.566744,0.00015,2]
[340680568,1729674642483,-625.817367,0.00015,2]
[340680569,1729674642492,-625.817367,0.00015,2]
[340680570,1729674642502,-151.0,0.00015,2]
[340680571,1729674642511,-151.0,0.00015,2]
[340680572,1729674642521,-1041.372091,0.00015,2]
[340680573,1729674642530,-1041.372091,0.00015,2]
[340680574,1729674642539,-151.0,0.00015,2]
[340680575,1729674642548,-151.0,0.00015,2]
[340680576,1729674642559,-151.0,0.00015,2]
[340680577,1729674642569,-151.0,0.00015,2]
[340680578,1729674642578,-151.0,0.00015,2]
[340680579,1729674642588,-151.0,0.00015,2]
[340680580,1729674642597,-151.0,0.00015,2]
[340680581,1729674642606,-151.0,0.00015,2]
[340680582,1729674642616,-344.3849,0.00015,2]
[340680583,1729674642626,-344.3849,0.00015,2]
[340680584,1729674642635,-151.0,0.00015,2]
[340680585,1729674642644,-300.0,0.00015,2]
[340680586,1729674642654,-500.0,0.00015,2]
[340680587,1729674642663,-151.0,0.00015,2]
[340680588,1729674642672,-151.0,0.00015,2]
[340680589,1729674642682,-171.82636271,0.00015,2]
[340680590,1729674642695,-500.0,0.00015,2]
[340680591,1729674642704,-500.0,0.00015,2]
[340680592,1729674642715,-151.0,0.00015,2]
[340680593,1729674642726,-151.0,0.00015,2]
[340680594,1729674642735,-151.0,0.00015,2]
[340680595,1729674642745,-151.0,0.00015,2]
[340680596,1729674642756,-478.961913,0.00015,2]
[340680597,1729674642765,-478.961913,0.00015,2]
[340680598,1729674642774,-151.0,0.00015,2]
[340680599,1729674642784,-151.0,0.00015,2]
[340680600,1729674642793,-151.0,0.00015,2]
[340680601,1729674642803,-151.0,0.00015,2]
[340680602,1729674642813,-287.221888,0.00015,2]
[340680603,1729674642822,-287.221888,0.00015,2]
[340680604,1729674642832,-151.0,0.00015,2]
[340680605,1729674642842,-151.0,0.00015,2]
[340680606,1729674642851,-151.0,0.00015,2]
[340680607,1729674642861,-151.0,0.00015,2]
[340680608,1729674642870,-4329.128,0.00015029,2]
[340680609,1729674642879,-152.492,0.00015029,2]
[340680610,1729674642889,-151.63022,0.00015049,2]
[340680611,1729674642898,-165.805716,0.00015049,2]
[340680612,1729674642908,-151.0,0.00015049,2]
[340680613,1729674642917,-151.0,0.00015049,2]
[340680614,1729674642927,-151.0,0.00015049,2]
[340680615,1729674642936,-173.272126,0.00015049,2]
[340680616,1729674642946,-173.272126,0.00015049,2]
[340680617,1729674642956,-151.0,0.00015049,2]
[340680618,1729674642965,-151.0,0.00015049,2]
[340680619,1729674642977,-151.0,0.00015049,2]
[340680620,1729674642986,-152.56451,0.00015049,2]
[340680621,1729674642996,-167.354974,0.00015049,2]
[340680622,1729674643006,-167.354974,0.00015049,2]
[340680623,1729674643016,-151.0,0.00015049,2]
[340680624,1729674643026,-151.0,0.00015049,2]
[340680625,1729674643036,-373.376443,0.00015049,2]
[340680626,1729674643046,-373.376443,0.00015049,2]
[340680627,1729674643055,-151.0,0.00015049,2]
[340680628,1729674643065,-219.459544,0.00015049,2]
[340680629,1729674643075,-219.459544,0.00015049,2]
[340680631,1729674643084,-541.320074,0.00015049,2]
[340680632,1729674643095,-541.320074,0.00015049,2]
[340680633,1729674643105,-151.0,0.00015049,2]
[340680634,1729674643117,-1002.959269,0.00015049,2]
[340680635,1729674643127,-151.0,0.00015049,2]
[340680636,1729674643137,-192.173597,0.00015049,2]
[340680638,1729674643147,-192.173597,0.00015049,2]
[340680639,1729674643157,-151.0,0.00015049,2]
[340680640,1729674643167,-208.78581,0.00015049,2]
[340680642,1729674643176,-208.78581,0.00015049,2]
[340680644,1729674643186,-314.566744,0.00015049,2]
[340680646,1729674643196,-314.566744,0.00015049,2]
[340680648,1729674643206,-625.817367,0.00015049,2]
[340680650,1729674643215,-625.817367,0.00015049,2]
[340680651,1729674643226,-151.0,0.00015049,2]
[340680652,1729674643236,-153.184812,0.00015049,2]
[340680653,1729674643246,-1041.372091,0.00015049,2]
[340680654,1729674643256,-1041.372091,0.00015049,2]
[340680655,1729674643266,-151.0,0.00015049,2]
[340680656,1729674643275,-151.0,0.00015049,2]
[340680657,1729674643286,-151.0,0.00015049,2]
[340680658,1729674643295,-151.0,0.00015049,2]
[340680659,1729674643305,-151.0,0.00015049,2]
[340680660,1729674643315,-151.0,0.00015049,2]
[340680662,1729674643324,-156.214214,0.00015049,2]
[340680664,1729674643334,-151.0,0.00015049,2]
[340680665,1729674643344,-344.3849,0.00015049,2]
[340680667,1729674643353,-344.3849,0.00015049,2]
[340680668,1729674643363,-151.0,0.00015049,2]
[340680670,1729674643373,-151.0,0.00015049,2]
[340680672,1729674643383,-151.0,0.00015049,2]
[340680674,1729674643394,-151.0,0.00015049,2]
[340680676,1729674643404,-151.0,0.00015049,2]
[340680678,1729674643414,-151.0,0.00015049,2]
[340680680,1729674643424,-478.961913,0.00015049,2]
[340680682,1729674643435,-478.961913,0.00015049,2]
[340680684,1729674643445,-151.0,0.00015049,2]
[340680686,1729674643454,-151.0,0.00015058,2]
[340680688,1729674643464,-151.0,0.00015058,2]
[340680689,1729674643476,-151.0,0.00015058,2]
[340680691,1729674643486,-151.0,0.00015058,2]
[340680693,1729674643496,-151.0,0.00015059,2]
[340680695,1729674643506,-151.0,0.00015059,2]
[340680697,1729674643515,-500.0,0.00015068,2]
[340680699,1729674643525,-243.575086,0.00015068,2]
[340680701,1729674643537,-151.0,0.00015068,2]
[340680703,1729674643548,-173.272126,0.00015068,2]
[340680705,1729674643558,-151.0,0.00015068,2]
[340680707,1729674643567,-173.272126,0.00015068,2]
[340680709,1729674643578,-151.0,0.00015068,2]
[340680711,1729674643588,-167.354974,0.00015068,2]
[340680712,1729674643598,-167.354974,0.00015068,2]
[340680713,1729674643608,-151.0,0.00015068,2]
[340680714,1729674643618,-151.0,0.00015068,2]
[340680715,1729674643627,-373.376443,0.00015068,2]
[340680716,1729674643637,-373.376443,0.00015068,2]
[340680717,1729674643646,-296.774403,0.00015068,2]
[340680718,1729674643656,-219.459544,0.00015068,2]
[340680719,1729674643665,-219.459544,0.00015068,2]
[340680720,1729674643674,-541.320074,0.00015068,2]
[340680721,1729674643684,-541.320074,0.00015068,2]
[340680722,1729674643693,-151.0,0.00015068,2]
[340680724,1729674643703,-197.473165,0.00015068,2]
[340680725,1729674643712,-151.0,0.00015068,2]
[340680727,1729674643722,-192.173597,0.00015068,2]
[340680729,1729674643731,-192.173597,0.00015068,2]
[340680730,1729674643741,-151.0,0.00015068,2]
[340680732,1729674643751,-208.78581,0.00015068,2]
[340680733,1729674643760,-208.78581,0.00015068,2]
[340680734,1729674643769,-314.566744,0.00015068,2]
[340680735,1729674643778,-314.566744,0.00015068,2]
[340680736,1729674643788,-625.817367,0.00015068,2]
[340680737,1729674643797,-625.817367,0.00015068,2]
[340680738,1729674643806,-151.0,0.00015068,2]
[340680739,1729674643816,-1041.372091,0.00015068,2]
[340680740,1729674643826,-1041.372091,0.00015068,2]
[340680741,1729674643836,-151.550191,0.00015079,2]
[340680742,1729674643846,-151.0,0.00015079,2]
[340680743,1729674643855,-151.0,0.00015079,2]
[340680744,1729674643865,-151.0,0.00015079,2]
[340680745,1729674643874,-151.0,0.00015079,2]
[340680746,1729674643883,-151.0,0.00015079,2]
[340680747,1729674643893,-999.403709,0.00015114,2]
[340680748,1729674644126,-185.143989,0.00015114,2]
[340680749,1729674644137,-165.842509,0.00015114,2]
[340680750,1729674644147,-211.080296,0.00015114,2]
[340680751,1729674644157,-158.266193,0.00015134,2]
[340680752,1729674644166,-158.266193,0.00015134,2]
[340680753,1729674644176,-151.0,0.00015134,2]
[340680754,1729674644185,-151.0,0.00015134,2]
[340680755,1729674644195,-151.0,0.00015134,2]
[340680756,1729674644204,-151.0,0.00015134,2]
[340680757,1729674644214,-151.0,0.00015134,2]
[340680758,1729674644225,-151.0,0.00015134,2]
[340680759,1729674644235,-150.112233,0.000152,2]
[340680760,1729674644246,-154.286658,0.00015236,2]
[340680761,1729674644256,-151.0,0.00015247,2]
[340680762,1729674644265,-151.0,0.00015247,2]
[340680763,1729674644275,-151.0,0.00015247,2]
[340680764,1729674644284,-344.3849,0.00015247,2]
[340680765,1729674644294,-344.3849,0.00015247,2]
[340680766,1729674644303,-151.0,0.00015247,2]
[340680767,1729674644313,-151.0,0.00015247,2]
[340680768,1729674644323,-478.961913,0.00015247,2]
[340680769,1729674644332,-478.961913,0.00015247,2]
[340680770,1729674644343,-151.0,0.00015247,2]
[340680771,1729674644353,-999.403709,0.00015298,2]
[340680772,1729674644363,-185.143989,0.00015298,2]
[340680773,1729674644374,-165.842509,0.00015298,2]
[340680774,1729674644384,-211.080296,0.00015298,2]
[340680775,1729674644393,-150.112233,0.000153,2]
[340680776,1729674644403,-150.112233,0.000153,2]
[340680777,1729674644413,-150.112233,0.000153,2]
[340680778,1729674644422,-151.0,0.00015362,2]
[340680779,1729674644432,-154.623413,0.00015362,2]
[340680780,1729674644442,-151.0,0.00015362,2]
[340680781,1729674644453,-151.0,0.00015362,2]
[340680782,1729674644463,-287.221888,0.00015362,2]
[340680783,1729674644476,-287.221888,0.00015362,2]
[340680784,1729674644486,-151.0,0.00015362,2]
[340680785,1729674644497,-151.0,0.00015362,2]
[340680786,1729674644507,-246.345708,0.00015362,2]
[340680787,1729674644516,-2764.88716452,0.00015362,2]
[340680788,1729674644622,-1353.26088849,0.00015362,2]
[340680832,1729674646562,-151.0,0.00015,2]
[340680833,1729674646572,-475.68295598,0.00015362,2]
[340680834,1729674646584,-3424.3,0.00015362,2]
[340680835,1729674646619,-3989.81,0.00015362,2]
[340680836,1729674703082,188388.325009,0.0001,2]
[340680837,1729674704212,210.12,0.00010959,2]
[340680852,1729675719195,301422.78458011,0.00021,60]
[340680899,1729675831904,-683.0,0.00012107,2]
[340680916,1729675837933,-2317.0,0.00012107,2]
[340680918,1729675837944,-1858.9729867,0.00012109,2]
[340680920,1729675837953,-250.0,0.00012185,2]
[340680922,1729675837963,-2604.03946671,0.00012833,2]
[340680924,1729675837972,-300.0,0.00012911,2]
[340680926,1729675837982,-300.0,0.00012911,2]
[340680928,1729675837992,-223.74801436,0.00012912,2]
[340680930,1729675838001,-23893.96525083,0.00012912,2]
[340681037,1729675843085,-376.9,0.00012912,2]
[340681038,1729675843096,-609.13474917,0.00012912,2]
[340681039,1729675843105,-250.0,0.00012933,2]
[340681040,1729675843115,-250.0,0.00012968,2]
[340681041,1729675843124,-250.0,0.00013003,2]
[340681042,1729675843133,-250.0,0.00013039,2]
[340681043,1729675843142,-250.0,0.00013074,2]
[340681044,1729675843151,-160.16914009,0.00013081,2]
[340681045,1729675843161,-250.0,0.0001311,2]
[340681046,1729675843170,-250.0,0.00013145,2]
[340681047,1729675843179,-250.0,0.00013181,2]
[340681048,1729675843189,-250.0,0.00013216,2]
[340681049,1729675843200,-1211.0176924,0.00013234,2]
[340681050,1729675843209,-250.0,0.00013252,2]
[340681051,1729675843219,-250.0,0.00013287,2]
[340681052,1729675843229,-250.0,0.00013323,2]
[340681053,1729675843239,-250.0,0.00013358,2]
[340681054,1729675843249,-250.0,0.00013394,2]
[340681055,1729675843259,-250.0,0.00013429,2]
[340681056,1729675843269,-250.0,0.00013465,2]
[340681057,1729675843278,-250.0,0.000135,2]
[340681058,1729675843287,-250.0,0.00013536,2]
[340681059,1729675843296,-98.82361617,0.00013548,2]
[340681060,1729675843308,-2536.56915203,0.00013548,2]
[340681061,1729675843317,-250.0,0.00013571,2]
[340681062,1729675843327,-45.62173054,0.00013607,2]
[340681075,1729675845730,-204.37826946,0.00013607,2]
[340681076,1729675845743,-57.62173054,0.00013699,2]
[340681077,1729675845757,-192.37826946,0.00013699,2]
[340681078,1729675845767,-400.0,0.00013973,2]
[340681079,1729675845778,-70.42173054,0.00014161,2]
[340681080,1729675845791,-349.57826946,0.00014161,2]
[340681081,1729675845802,-500.0,0.0001499,2]
[340681082,1729675845812,-500.0,0.0001499,2]
[340681083,1729675845823,-7161.45614734,0.00015,2]